[Event "44th Chess Olympiad Open 2022"]
[Site "Chennai"]
[Date "2022.08.06"]
[Round "8.33"]
[White "Salih, Akar Ali Salih"]
[Black "Sousa, Andre Ventura"]
[Result "0-1"]
[WhiteElo "2243"]
[BlackElo "2420"]
[Annotator "TA"]
[PlyCount "78"]
[EventDate "2022.??.??"]
[TimeControl "60"]

{[%evp 10,78,31,12,19,18,18,18,22,0,27,27,61,26,39,0,35,45,64,35,41,38,42,26,
40,43,37,12,8,10,9,8,13,9,8,-4,17,14,8,15,11,8,16,0,0,0,0,-12,0,-6,0,0,20,0,0,
0,0,0,0,-33,0,-103,0,-268,-270,-247,-209,-190,-194,-29997,-29998]} 1. e4 {
[%emt 0:00:04]} c6 {[%emt 0:00:03]} 2. Nc3 {[%emt 0:00:58]} d5 {[%emt 0:00:04]}
3. Nf3 {[%emt 0:00:39]} Bg4 {[%emt 0:00:04]} 4. h3 {[%emt 0:00:14]} Bxf3 {
[%emt 0:00:03]} 5. Qxf3 {[%emt 0:00:07]} e6 {[%emt 0:04:55]} 6. Be2 {[%emt 0:
00:00]} Bc5 {[%emt 0:00:00] B11: Caro-Kann: Two Knights Variation.} 7. O-O {
[%emt 0:00:27]} Nd7 {[%emt 0:00:00]} 8. exd5 {[%emt 0:00:55]} exd5 {[%emt 0:00:
00] The position is equal.} 9. Rd1 {[%emt 0:03:17] [#]} Ne7 $146 {[%emt 0:00:
00]} ({Predecessor:} 9... Bd4 10. Re1 Ne7 11. Bd1 O-O 12. Ne2 Bb6 13. d4 Nf6
14. c3 Ne4 15. Bc2 f5 {½-½ (27) Ziaziulkina,N (2363)-Nechaeva,M (2413) Stary
Smokovec 2018}) 10. d4 {[%emt 0:01:24]} Bb6 {[%emt 0:01:44]} 11. Bg5 {[%emt 0:
00:00]} O-O {[%emt 0:03:54]} 12. Bd3 {[%emt 0:03:48]} (12. Na4 {keeps more
tension.} Bc7 13. Bd3 h6 14. Bh4) 12... f6 {[%emt 0:04:10]} 13. Be3 {[%emt 0:
00:00]} Rf7 {[%emt 0:05:08]} 14. Ne2 {[%emt 0:03:29]} ({Reject} 14. Qh5 f5 $11)
14... Nf8 {[%emt 0:00:46]} 15. c3 {[%emt 0:06:05]} Qd7 {[%emt 0:02:41]} 16. h4
{[%emt 0:02:52]} Re8 {[%emt 0:04:03]} 17. Re1 {[%emt 0:01:16]} Nc8 {[%emt 0:00:
00]} 18. Ng3 {[%emt 0:04:33]} g6 $1 {[%emt 0:10:20] Inhibits Nf5.} 19. Bd2 {
[%emt 0:02:27]} Nd6 {[%emt 0:08:26]} 20. Rxe8 {[%emt 0:07:49]} Qxe8 {[%emt 0:
00:00]} 21. Re1 {[%emt 0:09:03]} Qd8 {[%emt 0:01:19]} 22. Qe2 {[%emt 0:21:38]}
Bc7 {[%emt 0:06:13]} 23. Nf1 {[%emt 0:02:11]} f5 {[%emt 0:07:05]} 24. Bg5 {
[%emt 0:00:18]} Qd7 {[%emt 0:00:09]} 25. f3 {[%emt 0:00:13]} Bd8 {[%emt 0:00:
00]} 26. Qe3 {[%emt 0:02:51]} Bxg5 {[%emt 0:02:18]} 27. Qxg5 {[%emt 0:02:33]}
Ne6 {[%emt 0:00:36]} 28. Qe3 {[%emt 0:00:07]} Ng7 {[%emt 0:00:29]} 29. Qg5 {
[%emt 0:02:11] Against Qd8} Nde8 {[%emt 0:03:11][%cal Yd6e8,Ye8c7,Yc7e6]} 30.
Re5 {[%emt 0:01:06]} Nc7 {[%emt 0:01:05]} 31. Ng3 {[%emt 0:02:02]} Nce6 {
[%emt 0:00:34]} 32. Qh6 {[%emt 0:00:30]} Qd8 {[%emt 0:01:28]} 33. Ne2 {[%emt 0:
01:03]} f4 {[%emt 0:00:39]} 34. Kf1 {[%emt 0:02:04]} Rf6 {[%emt 0:00:00]} 35.
Ng1 {[%emt 0:01:30] [#]} (35. b4 $11 {remains equal.}) 35... Qb6 {[%emt 0:02:
46]} (35... Nf5 $1 $17 {[%cal Rf5h6]} 36. Bxf5 gxf5) 36. Re2 $2 {[%emt 0:00:53]
[#]} (36. b4 $1 $11 {and White stays safe.}) 36... Nh5 $1 $19 {[%emt 0:00:25]}
37. Kf2 {[%emt 0:00:10]} c5 {[%emt 0:00:38][%cal Yc6c5,Yc5d4,Yd4c3]} 38. Nh3 {
[%emt 0:00:31] Hoping for Ng5.} cxd4 {[%emt 0:00:12]} 39. Ng5 $2 {[%emt 0:00:
33]} (39. c4 $19 Ng3 40. Ng5 Nxe2 41. Nxh7) 39... dxc3+ {[%emt 0:00:05]
Weighted Error Value: White=0.42/Black=0.12 (very precise)} 0-1

[Event "44th Chess Olympiad Open 2022"]
[Site "Chennai"]
[Date "2022.08.06"]
[Round "8.33"]
[White "Mohammed, Zozek Salah Mohamme"]
[Black "Santos, Jose Guilherme B Li"]
[Result "0-1"]
[WhiteElo "2232"]
[BlackElo "2361"]
[Annotator "TA"]
[PlyCount "118"]
[EventDate "2022.??.??"]
[TimeControl "60"]

{[%evp 22,118,45,37,33,22,22,-7,-12,-23,-23,-24,-24,-23,-21,-20,-20,-21,-20,
-28,-28,-37,-16,-29,-18,-30,-11,-14,-14,-24,0,0,0,-17,0,-33,-34,-66,-65,-164,
-35,-35,-18,-23,-11,-29,-27,-31,-13,-225,-227,-270,-203,-238,-84,-96,-96,-81,
-77,-74,-47,-47,-54,-80,-8,-8,-20,-26,0,-115,0,-83,-96,-402,-382,-371,-347,
-595,-591,-584,-580,-1518,-576,-1085,-615,-4622,-4618,-29978,-29979,-29983,
-29984,-29983,-29984,-29987,-29988,-29988,-29989,-29989,-29990]} 1. d4 {
[%emt 0:00:04]} Nf6 {[%emt 0:00:12]} 2. c4 {[%emt 0:00:05]} g6 {[%emt 0:01:59]}
3. Nf3 {[%emt 0:00:05]} Bg7 {[%emt 0:00:09]} 4. g3 {[%emt 0:00:04]} c5 {
[%emt 0:00:52]} 5. Bg2 {[%emt 0:00:25]} O-O {[%emt 0:00:07]} 6. O-O {[%emt 0:
00:00]} cxd4 {[%emt 0:03:29]} 7. Nxd4 {[%emt 0:00:12]} Nc6 {[%emt 0:00:19]} 8.
Nc3 {[%emt 0:00:30]} Nxd4 {[%emt 0:01:49]} 9. Qxd4 {[%emt 0:02:30]} d6 {
[%emt 0:00:03]} 10. b3 {[%emt 0:07:25]} Be6 {[%emt 0:05:08]} 11. Qd2 {[%emt 0:
00:00]} Rb8 {[%emt 0:00:13]} 12. Bb2 {[%emt 0:00:16]} Qa5 {[%emt 0:01:10][%cal
Yb7b5] A39: Symmetrical English vs ...g6:4 Bg2 Bg7 5 Nf3 Nf6 6 0-0 0-0 7 d4.}
13. Rfd1 {[%emt 0:02:53]} Rfc8 {[%emt 0:06:19]} 14. Nd5 {[%emt 0:07:55]} (14.
e4 {with more complications.} Bg4 15. Nb5 Qxd2 16. Rxd2 a6 17. Nd4) 14... Qxd2
{[%emt 0:00:35] The position is equal.} 15. Rxd2 {[%emt 0:00:20]} (15. Nxf6+ {
is more complex.} Bxf6 16. Rxd2 Bxb2 17. Rxb2 b5 18. cxb5 Rxb5 19. Be4) 15...
Nxd5 {[%emt 0:09:09]} 16. Bxg7 {[%emt 0:05:13]} Kxg7 {[%emt 0:00:03]} 17. Bxd5
{[%emt 0:01:49] [#]} b5 $146 {[%emt 0:00:04]} ({Predecessor:} 17... Bxd5 18.
Rxd5 Rc7 19. f4 Rbc8 20. Kf2 Rc5 21. Rad1 Rxd5 22. Rxd5 Rc6 23. e4 e6 {1-0 (64)
Dambrauskas,V (2342)-Molnar,P (2261) Kosice 2010}) 18. Bxe6 {[%emt 0:09:50]}
fxe6 {[%emt 0:01:31]} 19. cxb5 {[%emt 0:00:47]} Rxb5 $11 {[%emt 0:00:04]
Endgame KRR-KRR} 20. Rad1 {[%emt 0:00:35]} Kf6 {[%emt 0:02:31]} 21. Kf1 {
[%emt 0:02:53]} g5 {[%emt 0:01:43]} 22. h3 {[%emt 0:00:56]} Ra5 {[%emt 0:01:02]
} 23. e3 {[%emt 0:04:36]} Rc3 {[%emt 0:00:14]} 24. Ke2 {[%emt 0:00:49]} h5 {
[%emt 0:01:37]} 25. Rb2 {[%emt 0:00:24]} Kf5 {[%emt 0:04:42]} 26. Rd4 {[%emt 0:
00:00]} Rc1 {[%emt 0:22:18]} 27. Rd1 {[%emt 0:01:50]} Rac5 {[%emt 0:01:10]} 28.
Rbd2 {[%emt 0:02:03]} e5 {[%emt 0:03:11]} 29. Rxc1 {[%emt 0:25:33]} Rxc1 $15 {
[%emt 0:00:10] KR-KR} 30. Rd1 {[%emt 0:00:29]} ({Better is} 30. Kd3 $15) 30...
Rc2+ {[%emt 0:00:21]} (30... Rxd1 $1 $19 31. Kxd1 e4) 31. Rd2 {[%emt 0:00:01]}
Rc3 {[%emt 0:00:07]} 32. Rd3 {[%emt 0:00:35]} Rc5 {[%emt 0:00:07]} 33. Rd2 {
[%emt 0:01:19]} g4 {[%emt 0:04:17]} 34. hxg4+ {[%emt 0:01:20]} hxg4 {[%emt 0:
00:00] White must now prevent ...Ke4.} 35. Rb2 $2 {[%emt 0:00:44]} (35. Kd3 $1
$11 {and White has nothing to worry.}) 35... Ke4 $1 $19 {[%emt 0:01:09]} 36. a4
{[%emt 0:05:45]} Rc3 {[%emt 0:10:36]} 37. Kd2 {[%emt 0:02:46]} Rd3+ {[%emt 0:
00:00]} (37... Rc7 $19 {is more deadly.} 38. Ke2 Rc1) 38. Kc2 $17 {[%emt 0:00:
00]} d5 $1 {[%emt 0:05:25] Hoping for ...d4.} 39. Rb1 {[%emt 0:00:21]} d4 {
[%emt 0:01:14]} 40. exd4 {[%emt 0:00:12]} Kxd4 {[%emt 0:00:05]} (40... Rf3 $5 {
[%cal Rf3f2]} 41. Re1+ Kxd4 42. Rd1+ Ke4 $15) 41. a5 {[%emt 0:05:46]} e4 {
[%emt 0:04:19]} 42. Re1 {[%emt 0:04:51] [#]} e5 {[%emt 0:09:48]} (42... Rc3+ $1
$17 43. Kb2 Rf3) 43. Re2 $1 $11 {[%emt 0:03:07]} Rc3+ {[%emt 0:11:22]} 44. Kb2
{[%emt 0:03:35]} e3 {[%emt 0:00:07]} (44... Rf3 $5 {[%cal Rd4d3]}) 45. fxe3+ {
[%emt 0:10:20] [#]} (45. Rxe3 $1 $11 Rxe3 46. fxe3+ Kxe3 47. b4) 45... Rxe3 {
[%emt 0:00:06]} ({Black should play} 45... Kd3 $1 $17 {...Rxb3+ is the strong
threat.} 46. Re1 Rc2+ 47. Ka3 Rg2) 46. Rc2 {[%emt 0:01:39]} (46. Rxe3 $11 Kxe3
47. b4) 46... Rxg3 {[%emt 0:12:55]} 47. Rc7 $2 {[%emt 0:00:14]} (47. a6 $17)
47... Rg2+ $19 {[%emt 0:00:09]} 48. Ka3 {[%emt 0:00:26]} a6 {[%emt 0:00:00]}
49. Rc6 $2 {[%emt 0:00:19]} (49. b4 Rg3+ 50. Kb2) 49... e4 {[%emt 0:00:00]} 50.
Rxa6 {[%emt 0:00:58]} Rg1 {[%emt 0:00:03]} 51. Ra8 {[%emt 0:01:42]} g3 {
[%emt 0:02:19]} (51... e3 $142 {Strongly threatening ...e2.} 52. Rd8+ Kc5 53.
Rc8+ Kd4 54. Rd8+ Ke4 55. Re8+ Kd3 56. Rd8+ Kc3 57. Rc8+ Kd4 58. Rd8+) 52. Rd8+
{[%emt 0:03:22]} Kc5 {[%emt 0:00:28]} ({Weaker is} 52... Kc3 53. Rc8+ Kd4 54.
Kb4 $17) 53. b4+ {[%emt 0:00:46]} Kc6 {[%emt 0:00:02] Threatens to win with ...
e3.} 54. Rd2 {[%emt 0:00:40]} g2 {[%emt 0:00:14] Black mates.} 55. Ra2 {
[%emt 0:00:32]} Kb5 {[%emt 0:00:36]} 56. a6 {[%emt 0:00:27]} Kxa6 {[%emt 0:00:
00]} 57. Ka4 {[%emt 0:00:04]} Kb6 {[%emt 0:00:09]} 58. b5 {[%emt 0:00:08]} e3 {
[%emt 0:00:02][%cal Ye4e3,Ye3e2]} 59. Ka3 {[%emt 0:01:18]} e2 {[%emt 0:00:01]
Weighted Error Value: White=0.71/Black=0.25 (precise)} 0-1

[Event "44th Chess Olympiad Open 2022"]
[Site "Chennai"]
[Date "2022.08.06"]
[Round "8.34"]
[White "Goh, Wei Ming Kevin"]
[Black "Karimov, Alisher"]
[Result "1-0"]
[WhiteElo "2453"]
[BlackElo "2234"]
[Annotator "TA"]
[PlyCount "133"]
[EventDate "2022.??.??"]
[TimeControl "60"]

{[%evp 15,133,31,26,23,23,20,79,77,75,70,63,67,73,74,100,70,70,63,77,71,67,71,
129,111,116,45,66,61,106,45,45,45,45,41,75,75,75,72,68,81,106,104,103,100,104,
101,255,39,46,41,146,53,48,37,45,28,47,38,113,32,77,81,66,66,256,256,274,274,
368,360,359,358,355,310,539,539,539,539,527,520,474,474,691,635,12839,12839,
12840,12840,12842,12839,12840,12840,12841,12841,12842,12843,12845,12844,12845,
12843,12843,12843,12844,12843,12844,12843,12845,12846,12847,12846,12846,12847,
12847,12847,12848,12848,12849,12849,12850,12850]} 1. e4 {[%emt 0:00:20]} e5 {
[%emt 0:00:09]} 2. Nf3 {[%emt 0:02:11]} Nc6 {[%emt 0:00:09]} 3. Bc4 {[%emt 0:
00:00]} Nf6 {[%emt 0:00:09]} 4. d3 {[%emt 0:00:12]} Bc5 {[%emt 0:00:10]} 5. O-O
{[%emt 0:00:17]} O-O {[%emt 0:00:23]} 6. c3 {[%emt 0:02:25]} d5 {[%emt 0:00:13]
} 7. exd5 {[%emt 0:00:06]} Nxd5 {[%emt 0:00:07]} 8. Re1 {[%emt 0:02:03]} Bg4 {
[%emt 0:00:28]} 9. h3 {[%emt 0:02:04] 9.Nbd2 is the hot move. C54: Giuoco
Piano: 4 c3 Nf6, main lines with 5 d4 and 5 d3.} Bh5 {[%emt 0:00:06]} 10. Nbd2
{[%emt 0:00:16][%cal Yb1d2,Yd2e4,Ye4g3]} a6 {[%emt 0:09:11]} (10... Nb6 $11 {
keeps the balance.}) 11. Ne4 $1 $16 {[%emt 0:21:54] White is better.} Ba7 {
[%emt 0:00:56]} 12. Ng3 {[%emt 0:01:48][%csl Ye5,Yh5]} Bg6 {[%emt 0:00:00]} 13.
Nxe5 {[%emt 0:03:47]} Nxe5 {[%emt 0:14:35]} 14. Rxe5 {[%emt 0:00:24]} Nb6 {
[%emt 0:07:23]} 15. Qf3 {[%emt 0:13:17] [#] 0x0.0020a98de143dp-1022s more
active pieces. The black rooks are badly placed.} Nxc4 $146 {[%emt 0:05:28]} ({
Predecessor:} 15... c6 16. Bf4 Nxc4 17. dxc4 Qd3 18. Qxd3 Bxd3 19. Re7 b5 20.
cxb5 axb5 21. Rd1 Bc4 {½-½ (36) Akshit,K (1845)-Arjun,C (1901) Haryana 2018})
16. dxc4 {[%emt 0:00:06]} Qd3 {[%emt 0:17:58]} 17. Qxd3 {[%emt 0:11:42]} Bxd3 {
[%emt 0:00:11]} 18. b3 {[%emt 0:05:54]} a5 {[%emt 0:05:37]} (18... c6 $142) 19.
Rd5 {[%emt 0:09:14]} Rfd8 {[%emt 0:06:30]} 20. Rxd8+ {[%emt 0:01:43]} (20. Bf4
$1 $16 {[%cal Rf4c7]}) 20... Rxd8 $14 {[%emt 0:00:03]} 21. Bf4 {[%emt 0:00:09]}
Bc2 {[%emt 0:12:35]} 22. Rc1 {[%emt 0:04:14]} (22. Bxc7 $16 Rd2 23. Nh1 (23.
Bxa5 Bxf2+ 24. Kh2 f5 $11)) 22... Bg6 {[%emt 0:00:51]} 23. Nf1 {[%emt 0:05:30]}
c6 {[%emt 0:02:18]} 24. a3 {[%emt 0:08:50]} b5 {[%emt 0:08:29]} 25. cxb5 {
[%emt 0:01:23]} cxb5 {[%emt 0:00:01]} 26. Be3 {[%emt 0:00:41]} Bb8 {[%emt 0:00:
00]} 27. Bb6 $36 {[%emt 0:00:47][%csl Ya5,Yd8] White is on the roll.} Re8 {
[%emt 0:01:23]} 28. Bxa5 {[%emt 0:00:08]} Bf4 {[%emt 0:00:09]} 29. Rd1 {
[%emt 0:02:27]} Bc2 {[%emt 0:00:09]} 30. Rd4 {[%emt 0:00:45]} Bc1 {[%emt 0:00:
39] [#]} (30... Be5 $16 {is a better defense.}) 31. a4 $2 {[%emt 0:00:00]} (31.
c4 $1 $18) 31... bxa4 {[%emt 0:01:48]} 32. bxa4 {[%emt 0:00:03] Threatens to
win with Bb6.} h6 {[%emt 0:00:06]} (32... Ra8 $14) 33. c4 {[%emt 0:00:56]} (33.
Bb6 $16) 33... Bxa4 {[%emt 0:01:26]} 34. c5 {[%emt 0:00:00]} Bc6 {[%emt 0:00:
34]} 35. Ng3 {[%emt 0:00:10]} Re5 {[%emt 0:02:19]} 36. Bb4 {[%emt 0:00:41]} Kh7
{[%emt 0:01:58]} (36... Bb2 $14 37. Rd3 Kh7) 37. h4 {[%emt 0:00:41]} ({White
should try} 37. Rd6 $16 Re6 38. Rxe6 fxe6 39. Ne2) 37... Rd5 {[%emt 0:00:37]}
38. Rxd5 {[%emt 0:00:30]} Bxd5 $16 {[%emt 0:00:01] Endgame KBB-KBN} 39. Nf5 {
[%emt 0:00:18]} Be6 $2 {[%emt 0:01:07] White now steadily converts the win.} (
39... Bb2 $14) 40. Nd4 $18 {[%emt 0:00:00]} Bc8 {[%emt 0:00:30]} 41. c6 {
[%emt 0:05:57]} Kg6 {[%emt 0:17:11]} 42. Nb5 {[%emt 0:06:01]} Ba6 {[%emt 0:02:
01] [#]} 43. c7 $1 {[%emt 0:00:42]} Kh5 {[%emt 0:01:40]} (43... Bf4 44. Bd6)
44. g3 {[%emt 0:02:31]} f5 $2 {[%emt 0:00:00]} (44... Kg4 {was worth a try.}
45. Kg2 Bb7+ 46. Kh2 (46. f3+ Bxf3+ 47. Kf2 Bb7 $16) 46... Kf3) 45. Nd6 {
[%emt 0:04:21] White is clearly winning.} f4 {[%emt 0:00:24]} 46. c8=Q {
[%emt 0:01:47]} Bxc8 {[%emt 0:00:06]} 47. Nxc8 {[%emt 0:00:02]} Kg4 {[%emt 0:
01:06]} 48. Kg2 {[%emt 0:00:11]} fxg3 {[%emt 0:00:00]} (48... f3+ $142 49. Kf1
Bb2) 49. fxg3 {[%emt 0:00:06]} g5 {[%emt 0:00:19]} 50. hxg5 {[%emt 0:00:44]}
Bxg5 {[%emt 0:00:15] [#]} 51. Be7 $1 {[%emt 0:00:35]} Bd2 {[%emt 0:00:50]} 52.
Nd6 {[%emt 0:00:34]} Bb4 {[%emt 0:00:49] [#]} 53. Nf5 $1 {[%emt 0:00:11]} Bd2 {
[%emt 0:00:33]} 54. Nd4 {[%emt 0:00:32]} Be3 {[%emt 0:01:50]} 55. Nf3 {[%emt 0:
00:16]} Kf5 {[%emt 0:00:40]} 56. Bb4 {[%emt 0:00:44]} h5 {[%emt 0:01:19]} 57.
Bd2 {[%emt 0:01:02]} Bc5 {[%emt 0:00:00]} 58. Kh3 {[%emt 0:02:55]} Be7 {
[%emt 0:00:29]} 59. Bf4 {[%emt 0:00:12]} Bf6 {[%emt 0:02:30]} 60. Bb8 {[%emt 0:
01:53]} Bd8 {[%emt 0:00:34]} 61. Nd4+ {[%emt 0:00:12]} Kf6 {[%emt 0:01:51] [#]}
62. Be5+ $1 {[%emt 0:00:59]} Kg6 {[%emt 0:00:22]} 63. Ne6 {[%emt 0:00:23]} Be7
{[%emt 0:00:36]} 64. Bc7 {[%emt 0:01:45]} Bf6 {[%emt 0:00:37]} 65. Bd8 {
[%emt 0:00:25]} Be5 {[%emt 0:00:00]} 66. Nf4+ {[%emt 0:00:16]} Kh6 {[%emt 0:00:
25]} 67. Kh4 {[%emt 0:00:07] Weighted Error Value: White=0.20 (precise) /
Black=0.44} 1-0

[Event "44th Chess Olympiad Open 2022"]
[Site "Chennai"]
[Date "2022.08.06"]
[Round "8.34"]
[White "Khusenkhojaev, Muhammad"]
[Black "Tin, Jingyao"]
[Result "0-1"]
[WhiteElo "2397"]
[BlackElo "2552"]
[Annotator "TA"]
[PlyCount "62"]
[EventDate "2022.??.??"]
[TimeControl "60"]

{[%evp 19,62,0,15,1,10,-15,18,-10,0,0,0,0,0,-2,-8,-9,0,0,0,0,0,-27,-24,-148,
-158,-158,-160,-144,-145,-144,-142,-214,-188,-226,-218,-222,-146,-171,-158,
-1310,-1380,-29979,-29980,-29994,-29995]} 1. d4 {[%emt 0:00:12]} d5 {[%emt 0:
00:00]} 2. c4 {[%emt 0:00:08]} c6 {[%emt 0:00:17]} 3. Nf3 {[%emt 0:00:07]} Nf6
{[%emt 0:00:20]} 4. Qc2 {[%emt 0:00:15]} dxc4 {[%emt 0:00:37]} 5. Qxc4 {
[%emt 0:00:21]} Bf5 {[%emt 0:00:31]} 6. Nc3 {[%emt 0:02:02]} e6 {[%emt 0:00:42]
} 7. g3 {[%emt 0:01:38]} Nbd7 {[%emt 0:00:30]} 8. Bg2 {[%emt 0:00:21]} Be7 {
[%emt 0:00:22]} 9. O-O {[%emt 0:00:22]} O-O {[%emt 0:00:14]} 10. e3 {[%emt 0:
00:00]} b5 {[%emt 0:00:35]} 11. Qe2 {[%emt 0:01:07] D23: Queen's Gambit
Accepted: 3 Nf3 Nf6 sidelines.} b4 {[%emt 0:00:13]} 12. Nb1 {[%emt 0:02:55] [#]
} Bg6 $146 {[%emt 0:03:28]} ({Predecessor:} 12... Rc8 13. Rd1 c5 14. dxc5 Rxc5
15. Nd4 Be4 16. Bxe4 Nxe4 17. f3 Nef6 18. Nd2 Qb6 19. N2b3 Rcc8 20. Kh1 a5 21.
Qb5 Qxb5 22. Nxb5 a4 23. N3d4 g6 24. Na7 {½-½ (24) Van Wely,L (2664)-Krejci,
J (2533) Germany 2015}) 13. b3 {[%emt 0:06:47] The position is equal.} Rc8 {
[%emt 0:05:26]} 14. Bb2 {[%emt 0:00:39]} c5 {[%emt 0:01:52]} 15. Nbd2 {[%emt 0:
00:00]} cxd4 {[%emt 0:32:28]} 16. Nxd4 {[%emt 0:00:22]} Ne5 {[%emt 0:09:57]
Prevents Nc6.} 17. Rfd1 {[%emt 0:05:25]} ({Reject} 17. Nxe6 fxe6 18. Bxe5 Rc2
$17) 17... Bd3 {[%emt 0:06:10] Inhibits Nc4.} 18. Qe1 {[%emt 0:00:14]} Qb6 {
[%emt 0:00:16]} 19. N2f3 {[%emt 0:18:15]} Nxf3+ {[%emt 0:01:43]} 20. Bxf3 {
[%emt 0:00:08]} (20. Nxf3 $5 {[%cal Rd1d3]} Qa6 21. Ne5 $11) 20... Be4 {
[%emt 0:01:54]} 21. a4 {[%emt 0:02:09]} (21. Qf1 $11) 21... bxa3 $17 {[%emt 0:
00:00] Black is more active.} 22. Bxa3 {[%emt 0:00:15]} Bxa3 {[%emt 0:00:15]}
23. Rxa3 {[%emt 0:00:45]} e5 {[%emt 0:00:15]} 24. Bxe4 {[%emt 0:01:13]} Nxe4 {
[%emt 0:00:18]} 25. Nf3 {[%emt 0:12:24]} (25. Nf5 $17 {is a better defense.}
Rc2 26. Rc1) 25... Rc2 $19 {[%emt 0:08:47]} 26. Nd2 {[%emt 0:00:27] [#]} Qd6 $1
{[%emt 0:03:11][%csl Ya3,Yd2][%cal Re4d2]} 27. Nc4 {[%emt 0:03:52]} Qe7 {
[%emt 0:02:05][%cal Yc2c4] White must now prevent ...Rxc4!} 28. Rc1 {[%emt 0:
00:00]} Rxf2 {[%emt 0:01:34] And now ...Qf6 would win.} 29. Qa5 $2 {[%emt 0:00:
00]} (29. Rca1 $17) 29... Qf6 {[%emt 0:04:56] ( -> ...Qf3)} 30. Nxe5 {[%emt 0:
00:00] [#]} Rxh2 $3 {[%emt 0:00:35][%csl Ge4,Gh2][%cal Rf6f2]} 31. Ng4 {
[%emt 0:01:50]} (31. Ra2 Rh3) 31... Qb2 {[%emt 0:00:17] Weighted Error Value:
White=0.90/Black=0.06 (flawless)} 0-1

[Event "44th Chess Olympiad Open 2022"]
[Site "Chennai"]
[Date "2022.08.06"]
[Round "8.34"]
[White "Khusenkhojaev, Mustafokhuja"]
[Black "Gong, Qianyun"]
[Result "1-0"]
[WhiteElo "2238"]
[BlackElo "2275"]
[Annotator "RC"]
[PlyCount "85"]
[EventDate "2022.??.??"]
[TimeControl "60"]

1. d4 {[%emt 0:00:04]} d5 {[%emt 0:00:06]} 2. Nf3 {[%emt 0:00:10]} Nf6 {
[%emt 0:00:08]} 3. c4 {[%emt 0:00:18]} c6 {[%emt 0:00:06]} 4. Nc3 {[%emt 0:00:
00]} e6 {[%emt 0:00:12]} 5. Bg5 {[%emt 0:00:42]} h6 {[%emt 0:00:13]} 6. Bxf6 {
[%emt 0:00:31]} Qxf6 {[%emt 0:00:05]} 7. e3 {[%emt 0:00:14]} g6 {[%emt 0:00:18]
} 8. Bd3 {[%emt 0:00:22]} dxc4 {[%emt 0:01:19]} 9. Bxc4 {[%emt 0:04:23]} Nd7 {
[%emt 0:00:19]} 10. O-O {[%emt 0:01:17]} Bg7 {[%emt 0:00:20]} 11. Qc2 {[%emt 0:
00:00]} O-O {[%emt 0:04:47]} 12. a4 {[%emt 0:01:39]} a5 {[%emt 0:09:50]} 13.
Bb3 {[%emt 0:08:34]} Qe7 {[%emt 0:04:06]} 14. Rad1 {[%emt 0:11:27]} b6 {
[%emt 0:06:50]} 15. Rfe1 {[%emt 0:04:53]} Bb7 {[%emt 0:03:45]} 16. e4 {[%emt 0:
00:00]} Rfd8 {[%emt 0:25:45]} 17. e5 {[%emt 0:00:00]} Rab8 {[%emt 0:07:47]} 18.
h4 {[%emt 0:00:00]} b5 {[%emt 0:11:58]} 19. axb5 {[%emt 0:06:49]} cxb5 {
[%emt 0:01:27]} 20. d5 {[%emt 0:00:16]} Nc5 {[%emt 0:02:58]} 21. d6 {[%emt 0:
00:00]} Qd7 {[%emt 0:01:34]} 22. Nd5 {[%emt 0:01:19]} Nxb3 {[%emt 0:07:56]} 23.
Ne7+ {[%emt 0:00:14]} Kh8 {[%emt 0:03:31]} 24. Qxb3 {[%emt 0:00:17]} Bf8 {
[%emt 0:00:23]} 25. Rc1 {[%emt 0:00:55]} Qe8 {[%emt 0:01:20]} 26. Rc7 {[%emt 0:
00:00]} Rd7 {[%emt 0:00:15]} 27. Rec1 {[%emt 0:02:01]} Rxe7 {[%emt 0:00:26]}
28. dxe7 {[%emt 0:00:26]} Bxe7 {[%emt 0:00:02]} 29. Qe3 {[%emt 0:00:16]} Bf8 {
[%emt 0:01:35]} 30. Nh2 {[%emt 0:01:09]} h5 {[%emt 0:00:40]} 31. Qa7 {[%emt 0:
00:00]} Be4 {[%emt 0:03:47]} 32. Rxf7 {[%emt 0:00:28]} Ra8 {[%emt 0:00:41]} 33.
Qc7 {[%emt 0:00:26]} Kg8 {[%emt 0:00:23]} 34. Rd7 {[%emt 0:01:02]} Bd5 {
[%emt 0:00:38]} 35. Nf3 {[%emt 0:00:54]} Rb8 {[%emt 0:00:28]} 36. Ng5 {[%emt 0:
00:00]} Rb7 {[%emt 0:00:28]} 37. Qxb7 {[%emt 0:01:42]} Bxb7 {[%emt 0:00:04]}
38. Rxb7 {[%emt 0:00:06]} Qd8 {[%emt 0:00:22]} 39. Ne4 {[%emt 0:00:39]} Bg7 {
[%emt 0:00:44]} 40. Nf6+ {[%emt 0:00:08]} Kh8 {[%emt 0:00:49]} 41. Rcc7 {
[%emt 0:31:09]} Qd1+ {[%emt 0:03:20]} 42. Kh2 {[%emt 0:00:00]} Bxf6 {[%emt 0:
00:00]} 43. exf6 {[%emt 0:00:00]} 1-0